[Event "IV Elllobregat Open Chess Tmnt"]
[Site "Sant Boi de Llobregat, Spain"]
[Date "2023.12.03"]
[Round "4.55"]
[White "Martin Gonzalez, Angel"]
[Black "Molenda, Marcin"]
[Result "0-1"]
[TimeControl "90min/40moves + 15min/end + 30sec from move 1"]
[WhiteFideId "2200104"]
[BlackFideId "1173065"]
[WhiteElo "2191"]
[BlackElo "2387"]

1. e4 {[%emt 00:23:14]} c5 {[%emt 00:00:05]} 2. Nf3 {[%emt 00:00:12]} d6 {[%emt
00:00:06]} 3. d4 {[%emt 00:00:15]} cxd4 {[%emt 00:00:05]} 4. Nxd4 {[%emt
00:00:10]} Nf6 {[%emt 00:00:05]} 5. Nc3 {[%emt 00:00:08]} Nc6 {[%emt 00:00:04]}
6. Bc4 {[%emt 00:00:35]} Qb6 {[%emt 00:00:24]} 7. Nb3 {[%emt 00:00:23]} e6
{[%emt 00:00:17]} 8. O-O {[%emt 00:01:48]} Be7 {[%emt 00:00:47]} 9. Be3 {[%emt
00:00:34]} Qc7 {[%emt 00:00:21]} 10. f4 {[%emt 00:00:41]} a6 {[%emt 00:01:10]}
11. Bd3 {[%emt 00:01:00]} O-O {[%emt 00:01:50]} 12. g4 {[%emt 00:03:30]} b5
{[%emt 00:40:27]} 13. g5 {[%emt 00:04:10]} Nd7 {[%emt 00:00:18]} 14. Qh5 {[%emt
00:02:11]} b4 {[%emt 00:13:07]} 15. Ne2 {[%emt 00:14:47]} g6 {[%emt 00:16:53]}
16. Qh6 {[%emt 00:06:01]} Re8 {[%emt 00:00:26]} 17. Rf3 {[%emt 00:01:02]} Bf8
{[%emt 00:00:29]} 18. Qh4 {[%emt 00:00:07]} Bg7 {[%emt 00:01:52]} 19. f5 {[%emt
00:20:02]} exf5 {[%emt 00:00:53]} 20. Rh3 {[%emt 00:08:32]} fxe4 {[%emt
00:02:58]} 21. Nf4 {[%emt 00:07:12]} Nf8 {[%emt 00:00:47]} 22. Nd5 {[%emt
00:01:07]} Qd7 {[%emt 00:01:52]} 23. Bf1 {[%emt 00:04:46]} Ne5 {[%emt
00:02:43]} 24. Qxe4 {[%emt 00:05:24]} Bb7 {[%emt 00:02:26]} 25. Bg2 {[%emt
00:06:01]} Rab8 {[%emt 00:03:41]} 26. Rg3 {[%emt 00:06:07]} Ba8 {[%emt
00:02:46]} 27. Rd1 {[%emt 00:02:06]} Rbc8 {[%emt 00:00:59]} 28. Bd4 {[%emt
00:01:53]} Rc4 {[%emt 00:01:21]} 29. Qe2 {[%emt 00:01:56]} Qf5 {[%emt
00:01:26]} 30. Ne3 {[%emt 00:00:17]} Qc8 {[%emt 00:03:59]} 31. Bxa8 {[%emt
00:00:59]} Rxd4 {[%emt 00:00:07]} 32. Rxd4 {[%emt 00:00:13]} Qxa8 {[%emt
00:00:02]} 33. Rxd6 {[%emt 00:00:18]} Ne6 {[%emt 00:00:13]} 34. Nd5 {[%emt
00:00:48]} Rd8 {[%emt 00:01:17]} 35. Rxd8+ {[%emt 00:00:47]} Qxd8 {[%emt
00:00:01]} 36. Qd2 {[%emt 00:00:27]} Nxg5 {[%emt 00:00:26]} 37. Qd1 {[%emt
00:01:29]} Ne4 {[%emt 00:00:18]} 38. Rg2 {[%emt 00:00:43]} Qh4 {[%emt
00:00:34]} 39. Ne3 {[%emt 00:00:21]} Qf4 {[%emt 00:01:18]} 40. Qd8+ {[%emt
00:00:32]} Bf8 {[%emt 00:00:03]} 41. Nd5 Nf3+ {[%emt 00:09:25]} 42. Kh1 {[%emt
00:00:38]} Qe5 {[%emt 00:00:21]} 43. Nc1 {[%emt 00:07:54]} Kg7 {[%emt
00:04:31]} 44. Nd3 {[%clk 00:08:38]} {[%emt 00:00:30]} Qh5 {[%clk 00:04:23]}
{[%emt 00:00:09]} 45. N5f4 {[%clk 00:04:08]} {[%emt 00:05:00]} Ng3+ {[%clk
00:04:38]} {[%emt 00:00:15]} 0-1